Cogmind - Beta 9.5 @@@ ROGUE MODE // 2020.04.07 @ 15:05:29 Player: Omewes Result: Destroyed by S-27 Virus with Autogun Performance ------------- Evolutions (5) 2500 Regions Visited (18) 3600 Robots Destroyed (227) 1135 Value Destroyed (12114) 12114 Prototype IDs (29) 580 Alien Tech Used (0) 0 Bonus (5558) 5558 TOTAL SCORE: 25487 Bonus ------- High Alert Combat Kills 809 Follower Combat Kills 1418 Entered Garrisons 1400 Used RIF Installer 3000 Aligned with FarCom 300 Friendly Fire -1369 Cogmind --------- Core Integrity 0/1000 Matter 300/300 Energy 600/600 System Corruption 2% Temperature Cool (0) Movement Core (1550) Ox30 Location -5/Garrison Parts ------- > --- POWER (1) -------- (None) > --- PROPULSION (4) --- (None) > --- UTILITY (9) ------ Large Storage Unit High-capacity Storage Unit High-capacity Storage Unit Energy Well Relay Coupler [Grunt] (35) > --- WEAPON (3) ------- Axe Chainsword > --- INVENTORY (26) --- Micro Fission Core Heavy Siege Treads Antigrav System Antigrav System Advanced Heat Sink Advanced Heat Sink Advanced Cooling System Improved Target Analyzer Improved Transmission Jammer Remote Force Field Relay Coupler [NC] (33) Relay Coupler [NC] (31) Relay Coupler [NC] (30) Relay Coupler [Sentry] (23) Relay Coupler [Hunter] (20) Relay Coupler [Behemoth] (16) Relay Coupler [Behemoth] (13) Tesla Rifle Long-range Missile Launcher Peak State ------------ > --- POWER ------------ Micro Fission Core > --- PROPULSION ------- Heavy Siege Treads Heavy Siege Treads > --- UTILITY ---------- Advanced Heat Sink Advanced Heat Sink Large Storage Unit High-capacity Storage Unit High-capacity Storage Unit Energy Well Improved Particle Charger Quantum Capacitor > --- WEAPON ----------- Neutron Cannon Improved Plasma Cutter Chainsword > --- INVENTORY -------- Light Angular Momentum Engine Micro Fission Core Micro Fission Core Antigrav System Antigrav System Advanced Heat Sink Advanced Cooling System Improved Terrain Scanner Improved Target Analyzer Improved Transmission Jammer Remote Force Field Relay Coupler [NC] Relay Coupler [NC] Relay Coupler [Grunt] Relay Coupler [Hunter] Relay Coupler [Behemoth] Tesla Rifle Heavy Plasma Cannon Neutron Cannon Long-range Missile Launcher Chainsword [Rating: 97] Favorites ----------- Power Light Angular Momentum Engine Engine Light Angular Momentum Engine Power Core Micro Fission Core Propulsion Light Treads Treads Light Treads Leg Flexi-carbon Leg Hover Unit Antigrav System Utility High-capacity Storage Unit Device Improved Heat Sink Storage High-capacity Storage Unit Processor Advanced Targeting Computer Hackware Relay Coupler [Grunt] Protection Improved Weapon Shielding Weapon Chainsword Energy Gun Shock Rifle Energy Cannon Neutron Cannon Ballistic Gun AWS/Gauss Launcher Long-range Missile Launcher Special Weapon Remote Datajack Slashing Weapon Chainsword Special Melee Weapon Improved Datajack Build | -11 -10 -10 -10 -9 -8 -8 -8 -8 -7 -7 -7 -7 -6 -6 -5 -5 -5 -5 ------- Run | Scr Mat Min Exi Min Mat Gar Mat Gar Fac Gar Fac Gar Fac Gar Fac Gar Fac Gar Slots Evolved 10 | . . . . . 4 . . . 2 . . . 2 . 2 . . . Power . | . . . . . . . . . . . . . . . . . . . Propulsion 2 | . . . . . 2 . . . . . . . . . . . . . Utility 7 | . . . . . 2 . . . 2 . . . 1 . 2 . . . Weapon 1 | . . . . . . . . . . . . . 1 . . . . . Parts Attached 324 | 6 . 1 3 3 18 11 28 16 32 42 5 28 25 25 13 8 37 23 Power 22 | 1 . . . 1 1 2 2 . 2 3 1 . . 1 1 . 3 4 Engine 18 | 1 . . . 1 1 1 2 . 2 3 1 . . 1 1 . 1 3 Core 4 | . . . . . . 1 . . . . . . . . . . 2 1 Reactor . | . . . . . . . . . . . . . . . . . . . Propulsion 85 | 2 . . . . 6 4 7 10 10 14 . 6 4 6 3 2 8 3 Treads 81 | 2 . . . . 6 4 7 10 10 14 . 6 4 6 3 2 4 3 Leg 2 | . . . . . . . . . . . . . . . . . 2 . Wheel . | . . . . . . . . . . . . . . . . . . . Hover 2 | . . . . . . . . . . . . . . . . . 2 . Flight . | . . . . . . . . . . . . . . . . . . . Utility 94 | 1 . 1 1 . 3 2 6 . 6 6 2 11 6 10 6 6 16 11 Device 46 | . . 1 . . 2 1 2 . 4 2 2 4 4 4 4 3 7 6 Storage 12 | 1 . . 1 . . 1 2 . 1 . . . 1 . 1 . 2 2 Processor 2 | . . . . . 1 . 1 . . . . . . . . . . . Hackware 23 | . . . . . . . 1 . . 2 . 4 1 5 . 2 5 3 Protection 11 | . . . . . . . . . 1 2 . 3 . 1 1 1 2 . Artifact . | . . . . . . . . . . . . . . . . . . . Weapon 123 | 2 . . 2 2 8 3 13 6 14 19 2 11 15 8 3 . 10 5 Energy Gun 50 | 2 . . 1 2 5 2 10 4 10 9 . 3 1 1 . . . . Energy Cannon 29 | . . . . . 1 1 . 1 1 6 . 3 6 4 1 . 3 2 Ballistic Gun 2 | . . . 1 . 1 . . . . . . . . . . . . . Ballistic Cannon . | . . . . . . . . . . . . . . . . . . . Launcher 1 | . . . . . . . . . . . . . . . . . . 1 Special Weapon 19 | . . . . . . . . . . 3 1 4 4 2 1 . 4 . Impact Weapon . | . . . . . . . . . . . . . . . . . . . Slashing Weapon 21 | . . . . . 1 . 3 . 3 1 1 1 4 1 1 . 3 2 Piercing Weapon . | . . . . . . . . . . . . . . . . . . . Special Melee Weapon 1 | . . . . . . . . 1 . . . . . . . . . . Unidentified Prototypes 6 | . . . . . 3 . 1 . 2 . . . . . . . . . Parts Lost 60 | . . . . 1 . 1 3 3 . 15 . 2 . 2 . 3 16 14 Power 5 | . . . . . . 1 . . . 2 . . . . . . . 2 Propulsion 19 | . . . . . . . . 1 . 6 . . . . . 1 8 3 Utility 13 | . . . . . . . 1 . . 2 . 1 . . . 1 4 4 Weapon 23 | . . . . 1 . . 2 2 . 5 . 1 . 2 . 1 4 5 Highest Loss Streak 13 | . . . . 1 . 1 1 1 . 13 . 2 . 1 . 2 10 8 Average Slot Usage (%) 94 | . 85 89 93 85 94 99 99 99 95 99 100 99 99 100 93 92 85 78 Engine 6 | . 14 14 14 14 9 8 9 9 7 6 7 7 6 6 5 5 . 3 Treads 26 | . 28 28 28 28 32 36 36 35 30 29 30 30 26 26 23 23 12 11 Device 13 | . . 4 14 14 18 18 12 9 12 6 15 4 11 15 21 15 17 20 Storage 18 | . 14 14 14 14 9 17 18 18 19 23 23 23 20 20 17 17 19 21 Processor 3 | . . . . . 8 . 5 9 7 7 7 7 4 . . . . . Hackware 3 | . . . . . . . . . . 4 . 5 5 9 2 6 7 2 Protection 1 | . . . . . . . . . 2 2 . 3 2 1 3 5 . . Energy Gun 6 | . 28 28 16 4 13 9 17 12 13 3 12 2 1 . . . . . Energy Cannon 5 | . . . . . 1 8 . 4 . 10 . 8 12 15 5 5 4 3 Special Weapon 1 | . . . . . . . . . . . . 2 2 3 5 3 3 2 Slashing Weapon 1 | . . . . . . . . . . . 1 . 1 . 4 5 4 7 Naked Turns . | . . . . . . . . . . . . . . . . . . . Heaviest Build 126 | 13 13 14 48 48 50 58 79 82 95 107 101 113 125 126 125 125 117 118 Greatest Support 140 | 40 40 40 40 40 80 80 82 82 85 90 90 90 88 96 105 112 140 140 Greatest Overweight (x) 34 | 4 . . 1 1 1 . . 1 1 1 1 1 1 1 1 1 34 33 Average Overweight (x) . | 1 . . . . . . . . . . 1 1 1 1 1 1 . . Largest Inventory Capacity 26 | 6 6 6 12 12 12 16 20 20 24 24 24 24 26 26 26 26 26 26 Average Capacity 21 | 5 6 6 10 12 12 15 17 20 22 24 24 24 25 26 26 26 26 26 Most Carried 26 | 1 3 4 7 6 12 16 19 20 24 24 24 24 26 26 26 26 26 26 Average Carried 19 | . 2 3 3 4 9 14 15 18 20 22 24 23 24 24 25 25 22 22 Final Capacity 26 | 6 6 6 12 12 12 16 20 20 24 24 24 24 26 26 26 26 26 26 Final Carried 26 | 1 3 3 5 6 12 16 19 16 24 24 24 24 25 26 25 26 19 20 Class Distribution -------------------- 44% | Bothacker-Mutant 13% | Hauler-Mutant 11% | Scavenger-Skirmisher 9% | Botlord-Mutant 8% | Mutant 4% | Scavenger-Mutant 3% | Bothacker-Skirmisher Dominant Class ---------------- Mutant | -10/Materials Mutant | -10/Mines Mutant | -10/Exiles Mutant | -9/Mines Scavenger-Skirmisher | -8/Materials Scavenger-Skirmisher | -8/Garrison Hauler-Mutant | -8/Materials Bothacker-Mutant | -8/Garrison Bothacker-Mutant | -7/Factory Bothacker-Mutant | -7/Garrison Bothacker-Mutant | -7/Factory Bothacker-Mutant | -7/Garrison Bothacker-Mutant | -6/Factory Bothacker-Mutant | -6/Garrison Bothacker-Mutant | -5/Factory Botlord-Mutant | -5/Garrison Hauler-Mutant | -5/Factory Hauler-Mutant | -5/Garrison Resources | -11 -10 -10 -10 -9 -8 -8 -8 -8 -7 -7 -7 -7 -6 -6 -5 -5 -5 -5 ----------- Run | Scr Mat Min Exi Min Mat Gar Mat Gar Fac Gar Fac Gar Fac Gar Fac Gar Fac Gar Matter Collected 3627 | 259 1 10 . 55 160 123 275 160 320 375 . 420 261 320 120 131 412 225 Remotely . | . . . . . . . . . . . . . . . . . . . Salvage Created 10383 | 54 377 299 124 210 592 333 1115 713 955 942 70 233 405 639 521 625 1076 1100 Parts 514 | 6 16 15 6 18 39 14 47 45 41 46 2 11 21 32 35 20 52 48 Haulers Intercepted 9 | . 1 . . . 2 . 2 . 2 . . . 1 . . . 1 . Recyclers Shooed 4 | . 2 . . . . . . . 2 . . . . . . . . . Parts Field Recycled . | . . . . . . . . . . . . . . . . . . . Retrieved Matter . | . . . . . . . . . . . . . . . . . . . Parts Self-Destructed . | . . . . . . . . . . . . . . . . . . . Prevented . | . . . . . . . . . . . . . . . . . . . Kills | -11 -10 -10 -10 -9 -8 -8 -8 -8 -7 -7 -7 -7 -6 -6 -5 -5 -5 -5 ------- Run | Scr Mat Min Exi Min Mat Gar Mat Gar Fac Gar Fac Gar Fac Gar Fac Gar Fac Gar Combat Hostiles Destroyed 193 | . 4 6 3 7 8 5 19 26 12 15 1 5 5 12 10 10 17 28 Melee 15 | . . . . . . . . . . 1 . . . . . . . 14 Guns 73 | . 4 5 3 7 5 1 15 18 11 2 1 1 . . . . . . Cannons 92 | . . . . . 2 4 . 4 . 12 . 4 5 12 10 9 16 14 AOE 8 | . . 1 . . . . 3 4 . . . . . . . . . . Classes Destroyed 16 | 2 4 . 2 2 2 . . . 1 2 . . . . 1 . . . Worker 5 | 1 1 . . . . . . . 2 . . . . . 1 . . . Builder 1 | . . . . 1 . . . . . . . . . . . . . . Tunneler 4 | 1 . 1 . . . . . . . . . . . . 2 . . . Hauler 9 | . 1 . . . 2 . 2 . 2 . . . 1 . . . 1 . Recycler 5 | . 1 . . 1 . . . . 3 . . . . . . . . . Operator 4 | . 1 . . . . . 2 . . . . . . . . . 1 . Watcher 2 | . . . . . . . . . . . . . . . 2 . . . Swarmer 53 | . . . . 6 . . 1 17 3 . . . . 5 6 . . 15 Grunt 76 | . 4 6 1 1 2 3 12 4 5 7 1 5 2 3 1 5 6 8 Brawler 1 | . . . . . 1 . . . . . . . . . . . . . Duelist 5 | . . . . . . . . . . 1 . . . . . 1 . 3 Sentry 31 | . . . . . 5 1 6 4 3 6 . . 1 2 . 2 1 . Demolisher 1 | . . . 1 . . . . . . . . . . . . . . . Hunter 14 | . . . 1 . . 2 . 1 . 1 . . 1 . 1 2 4 1 Programmer 14 | . . . . . . . . . 1 . . . 1 2 3 . 7 . Behemoth 2 | . . . . . . . . . . 1 . . . . . . . 1 Best Kill Streak 8 | 2 3 5 3 8 5 3 3 8 6 5 1 2 2 5 3 3 4 5 Combat Bots Only 8 | . 2 4 3 6 5 3 3 8 4 5 1 2 2 5 3 3 4 5 Max Kills in Single Turn 2 | 1 2 2 1 1 1 1 1 2 2 1 1 1 1 1 1 1 1 2 Gunslinging . | . . . . . . . . . . . . . . . . . . . Exploded 1 | . . 1 . . . . 1 1 . . . . . . . . . . Melee 2 | . . . . . . . . . . 1 . . . . . . . 2 Uniques/NPCs Destroyed . | . . . . . . . . . . . . . . . . . . . Combat | -11 -10 -10 -10 -9 -8 -8 -8 -8 -7 -7 -7 -7 -6 -6 -5 -5 -5 -5 -------- Run | Scr Mat Min Exi Min Mat Gar Mat Gar Fac Gar Fac Gar Fac Gar Fac Gar Fac Gar Damage Taken 15873 | . 79 246 . 195 322 466 969 1295 878 2200 96 830 154 999 699 1051 2353 3041 Core 1919 | . 33 23 . 48 29 28 64 149 120 232 . 77 . 114 62 70 401 469 Absorbed by Shields . | . . . . . . . . . . . . . . . . . . . Reduced by Siege Mode 356 | . . . . . . . . . . . . . . . . . 21 335 Core Remaining (%) 66 | 100 . . . 58 . . . 50 . . . 38 . 86 . . . . Volleys Fired 794 | 5 25 15 . 4 27 23 63 70 44 77 9 43 20 45 50 62 140 72 Largest 3 | 2 2 2 . 1 2 2 2 2 2 2 2 2 3 3 1 1 1 1 Hottest 270 | 80 80 80 . 40 108 113 118 115 138 180 130 180 270 270 98 98 98 90 Shots Fired 1177 | 10 50 30 5 24 43 42 126 132 88 115 11 58 38 81 50 62 140 72 Gun 558 | 10 50 30 5 24 33 24 126 96 88 42 10 18 2 . . . . . Cannon 532 | . . . . . 10 18 . 36 . 68 . 21 26 67 50 54 111 71 Launcher 1 | . . . . . . . . . . . . . . . . . . 1 Special 86 | . . . . . . . . . . 5 1 19 10 14 . 8 29 . Kinetic 25 | . . . 5 20 . . . . . . . . . . . . . . Thermal 698 | . . . . . . . 60 90 48 80 . 21 32 67 50 54 125 71 Explosive 1 | . . . . . . . . . . . . . . . . . . 1 Electromagnetic 385 | 10 50 30 . 4 43 42 66 42 40 30 10 18 . . . . . . Robot Hit Streak 47 | 3 6 12 8 9 26 30 17 20 28 44 47 25 27 22 12 31 11 18 Robot Miss Streak 5 | 2 4 2 . 3 1 2 2 5 2 1 1 1 2 2 1 3 2 3 Penetration Max . | . . . . . . . . . . . . . . . . . . . Secondary Targets 13 | . 1 2 . . . . 4 2 3 1 . . . . . . . . Max Gunslinging Chain 1 | . 1 1 . . . . 1 1 1 1 . . . . . . . . Capacitor 245 | . . . . . . . . . . . . . . . 34 41 99 71 Autonomous 26 | . . . 5 21 . . . . . . . . . . . . . . Shots Hit Robots 896 | 6 26 23 5 15 38 24 101 78 67 80 9 43 30 62 38 56 110 85 Core Hits 371 | 3 15 13 3 10 22 15 38 32 33 33 5 9 13 20 16 18 33 40 Critical Hits 12 | . . . . . 1 . . . 1 1 . . 1 . 1 2 5 . Critical Kills 3 | . . . . . . . . . 1 1 . . 1 . . . . . Critical Parts Destroyed 8 | . . . . . 1 . . . . . . . . . 1 2 4 . Melee Attacks 119 | . . . . . 1 . 3 1 5 3 3 1 10 10 13 8 8 53 Impact . | . . . . . . . . . . . . . . . . . . . Slashing 118 | . . . . . 1 . 3 . 5 3 3 1 10 10 13 8 8 53 Piercing . | . . . . . . . . . . . . . . . . . . . Sneak Attacks 2 | . . . . . . . 1 1 . . . . . . . . . . Combat Hostiles . | . . . . . . . . . . . . . . . . . . . Follow-up Attacks 7 | . . . . . . . . . . . . . . . . . . 7 Damage Inflicted 23534 | 87 460 373 130 518 697 671 2114 1566 1289 1957 110 533 836 1896 1488 1718 3704 3387 Guns 7012 | 87 417 317 130 518 452 239 1766 968 1188 564 110 233 23 . . . . . Cannons 13239 | . . . . . 245 242 . 321 . 1184 . 300 755 1279 1488 1644 3487 2294 Explosions 1175 | . 43 56 . . . 185 203 277 101 116 . . . . . . . 194 Melee 1818 | . . . . . . . 135 . . 93 . . . 617 . 74 . 899 Ramming 43 | . . . . . . 5 10 . . . . . 24 . . . 4 . Kinetic 608 | . . . 130 478 . . . . . . . . . . . . . . Thermal 16213 | . 43 56 . . . 185 1035 1165 709 1503 . 300 812 1279 1488 1644 3700 2294 Explosive 194 | . . . . . . . . . . . . . . . . . . 194 Electromagnetic 4658 | 87 417 317 . 40 697 481 934 401 580 361 110 233 . . . . . . Impact . | . . . . . . . . . . . . . . . . . . . Slashing 1818 | . . . . . . . 135 . . 93 . . . 617 . 74 . 899 Piercing . | . . . . . . . . . . . . . . . . . . . Highest Corruption 2 | . . . . . . . . . . . . . 1 2 . . 2 2 Average Corruption 1 | . . . . . . . . . . . . . 1 1 . . 1 2 Corruption Purged . | . . . . . . . . . . . . . . . . . . . Effects 34 | . . . . . . . . . . . . . 3 12 . . 8 11 Message Errors 16 | . . . . . . . . . . . . . 2 5 . . 7 2 Heat Flow Errors 3 | . . . . . . . . . . . . . . 1 . . . 2 Energy Discharges 6 | . . . . . . . . . . . . . 1 4 . . . 1 Data Loss (minor) 3 | . . . . . . . . . . . . . . 1 . . 1 1 Targeting Errors 6 | . . . . . . . . . . . . . . 1 . . . 5 Overload Shots . | . . . . . . . . . . . . . . . . . . . Overflow Damage 639 | . 31 . . . . 10 139 38 6 46 . . 9 48 81 7 154 70 Projectiles 397 | . . . . . . . . 11 . 23 . . 9 48 81 7 154 64 Explosions 111 | . 31 . . . . 10 14 27 6 23 . . . . . . . . Melee 131 | . . . . . . . 125 . . . . . . . . . . 6 Knockbacks . | . . . . . . . . . . . . . . . . . . . Impact . | . . . . . . . . . . . . . . . . . . . Kinetic . | . . . . . . . . . . . . . . . . . . . Secondary . | . . . . . . . . . . . . . . . . . . . Self-Inflicted Damage 205 | . . . . . . 53 22 79 24 27 . . . . . . . . Shots 6 | . . . . . . 1 1 2 1 1 . . . . . . . . Rammed 5 | . . . . . . 1 1 . . . . . 2 . . . 1 . Targets Rammed 5 | . . . . . . 1 1 . . . . . 2 . . . 1 . Kicked . | . . . . . . . . . . . . . . . . . . . Crushed . | . . . . . . . . . . . . . . . . . . . Highest Temperature 456 | 72 138 165 . . 18 17 49 16 10 207 39 267 328 314 260 456 294 355 Average Temperature 80 | 35 45 81 . . 7 8 14 5 2 53 23 97 118 97 85 124 114 118 Received Heat Transfer 3120 | . 42 135 . 42 144 90 396 171 249 468 45 321 45 171 63 261 270 207 Effects 8 | . . . . . . . . . . . . 3 . . . 1 4 . Energy Bleed 3 | . . . . . . . . . . . . 2 . . . . 1 . Interference 4 | . . . . . . . . . . . . 1 . . . . 3 . Damage (minor) 1 | . . . . . . . . . . . . . . . . 1 . . Siege Activations 3 | . . . . . . . . . . . . . . . . . 1 2 Total Turns 139 | . . . . . . . . . . . . . . . . . 80 59 Longest Duration 80 | . . . . . . . . . . . . . . . . . 80 34 Robots Corrupted 5 | . . . . . 1 . 1 . 2 1 . . . . . . . . Combat Hostiles 3 | . . . . . 1 . 1 . 1 . . . . . . . . . Parts Fried 21 | . 2 2 . . 1 1 3 1 6 2 2 1 . . . . . . Impact Corruptions . | . . . . . . . . . . . . . . . . . . . Robots Melted 2 | . . . . . . . . . . . . . . . . 1 1 . Combat Hostiles 2 | . . . . . . . . . . . . . . . . 1 1 . Parts Melted 41 | . . . . . . . 6 5 2 1 . . 3 2 8 5 4 5 Heat Transferred 19239 | . 50 100 . . . 200 2039 2015 1384 1555 . 400 1016 1371 1554 1641 3439 2475 Parts Sabotaged . | . . . . . . . . . . . . . . . . . . . Parts Stolen . | . . . . . . . . . . . . . . . . . . . Parts Stripped . | . . . . . . . . . . . . . . . . . . . Power Chain Reactions 16 | . 1 1 . . . 1 5 4 2 2 . . . . . . . . Missiles Intercepted . | . . . . . . . . . . . . . . . . . . . Alert | -11 -10 -10 -10 -9 -8 -8 -8 -8 -7 -7 -7 -7 -6 -6 -5 -5 -5 -5 ------- Run | Scr Mat Min Exi Min Mat Gar Mat Gar Fac Gar Fac Gar Fac Gar Fac Gar Fac Gar Peak Influence 1010 | 10 163 198 . 185 231 950 591 930 606 1010 561 483 264 613 358 370 397 731 Average Influence 357 | . 110 135 . 146 84 493 381 600 501 704 538 396 150 335 216 244 155 336 Maximum Alert Level 3 | . . . . . 1 3 2 3 2 3 2 2 1 2 1 1 1 3 Low Security (%) 33 | 100 100 100 . 100 96 29 1 3 . . . . 62 23 53 26 67 30 Level 1 31 | . . . . . 3 12 53 18 10 12 . 69 37 49 46 73 32 39 Level 2 22 | . . . . . . 24 44 36 89 27 100 30 . 27 . . . 23 Level 3 13 | . . . . . . 34 . 41 . 59 . . . . . . . 6 Level 4 . | . . . . . . . . . . . . . . . . . . . Level 5 . | . . . . . . . . . . . . . . . . . . . High Security . | . . . . . . . . . . . . . . . . . . . Max Security . | . . . . . . . . . . . . . . . . . . . Squads Dispatched 23 | . 1 . . 1 1 . 4 . 3 . . . 4 . 2 . 7 . Investigation 3 | . . . . . . . 1 . . . . . 2 . . . . . Extermination 8 | . . . . . . . . . 1 . . . 2 . 2 . 3 . Reinforcement 7 | . 1 . . 1 . . 3 . 1 . . . . . . . 1 . Assault . | . . . . . . . . . . . . . . . . . . . Garrison 5 | . . . . . 1 . . . 1 . . . . . . . 3 . Intercept . | . . . . . . . . . . . . . . . . . . . Construction Impeded 1 | . . . . 1 . . . . . . . . . . . . . . Haulers Reinforced . | . . . . . . . . . . . . . . . . . . . Alert ID Control Effect 19 | . . . . . . . . . . . . . . 9 5 2 3 . Stealth | -11 -10 -10 -10 -9 -8 -8 -8 -8 -7 -7 -7 -7 -6 -6 -5 -5 -5 -5 --------- Run | Scr Mat Min Exi Min Mat Gar Mat Gar Fac Gar Fac Gar Fac Gar Fac Gar Fac Gar Distress Signals 6 | . . . . . 1 . 2 . 1 . . . . . 1 . 1 . Communications Jammed 2 | . . . . . . . . . . . . . . . 2 . . . Distress Signals 2 | . . . . . . . . . . . . . . . 2 . . . Times Spotted 320 | . 7 6 . 7 17 18 32 27 13 26 2 16 5 26 18 20 35 45 Peak Tracking Total 8 | . 2 2 1 5 5 5 6 8 4 6 3 4 2 5 4 5 4 7 Tactical Retreats 28 | . . . . 1 1 3 2 1 . . 1 2 . . 1 5 2 9 Traps | -11 -10 -10 -10 -9 -8 -8 -8 -8 -7 -7 -7 -7 -6 -6 -5 -5 -5 -5 ------- Run | Scr Mat Min Exi Min Mat Gar Mat Gar Fac Gar Fac Gar Fac Gar Fac Gar Fac Gar Traps Triggered 27 | . . . . . . 3 . . 1 7 . 4 . 8 1 2 1 . Indirectly . | . . . . . . . . . . . . . . . . . . . Trap Hack Attempts . | . . . . . . . . . . . . . . . . . . . Triggered . | . . . . . . . . . . . . . . . . . . . Disarmed . | . . . . . . . . . . . . . . . . . . . Reprogrammed . | . . . . . . . . . . . . . . . . . . . Reused . | . . . . . . . . . . . . . . . . . . . Traps Extracted . | . . . . . . . . . . . . . . . . . . . Installed . | . . . . . . . . . . . . . . . . . . . Triggered 1 | . . . . . . . 1 . . . . . . . . . . . Machines | -11 -10 -10 -10 -9 -8 -8 -8 -8 -7 -7 -7 -7 -6 -6 -5 -5 -5 -5 ---------- Run | Scr Mat Min Exi Min Mat Gar Mat Gar Fac Gar Fac Gar Fac Gar Fac Gar Fac Gar Machines Disabled 30 | . 2 . 1 . 1 4 1 3 1 4 . 2 . 4 2 1 . 4 Max in Single Turn 2 | . 1 . 1 . 1 1 1 1 1 1 . 1 . 1 1 1 . 2 Garrison Relay 18 | . . . . . . 2 . 4 . 4 . 1 . 3 . 1 . 3 Phase Generator 1 | . . . . . . 1 . . . . . . . . . . . . Machines Sabotaged . | . . . . . . . . . . . . . . . . . . . Garrisons Compromised . | . . . . . . . . . . . . . . . . . . . Overloaded Fab Kills . | . . . . . . . . . . . . . . . . . . . Fab Network Shutdowns . | . . . . . . . . . . . . . . . . . . . Hacking | -11 -10 -10 -10 -9 -8 -8 -8 -8 -7 -7 -7 -7 -6 -6 -5 -5 -5 -5 --------- Run | Scr Mat Min Exi Min Mat Gar Mat Gar Fac Gar Fac Gar Fac Gar Fac Gar Fac Gar Machines Accessed 29 | . . . 2 . 3 . 5 . 4 . 1 . 2 . 5 . 7 . Terminals 12 | . . . . . 2 . 3 . 2 . . . 1 . 2 . 2 . Fabricators 2 | . . . . . . . . . . . . . . . . . 2 . Repair Stations 4 | . . . . . . . 1 . 1 . . . . . 2 . . . Recycling Units . | . . . . . . . . . . . . . . . . . . . Scanalyzers 2 | . . . . . . . . . . . . . . . . . 2 . Garrison Access 7 | . . . . . 1 . 1 . 1 . 1 . 1 . 1 . 1 . Total Hacks 93 | . . . 24 . 11 . 22 . 7 . 1 . 5 . 7 . 16 . Successful 63 | . . . 24 . 5 . 11 . 4 . 1 . 1 . 4 . 13 . Failed 30 | . . . . . 6 . 11 . 3 . . . 4 . 3 . 3 . Catastrophic 7 | . . . . . 2 . 2 . 2 . . . 1 . . . . . Database Lockouts . | . . . . . . . . . . . . . . . . . . . Manual 28 | . . . 1 . 8 . 14 . 1 . . . 1 . . . 3 . Terminals 43 | . . . . . 10 . 17 . 3 . . . 3 . 2 . 8 . Fabricators 4 | . . . . . . . . . . . . . . . . . 4 . Repair Stations 11 | . . . . . . . 4 . 3 . . . . . 4 . . . Recycling Units . | . . . . . . . . . . . . . . . . . . . Scanalyzers 3 | . . . . . . . . . . . . . . . . . 3 . Garrison Access 8 | . . . . . 1 . 1 . 1 . 1 . 2 . 1 . 1 . Terminal Hacks 43 | . . . 24 . 2 . 8 . 1 . . . . . 1 . 7 . Record 23 | . . . 23 . . . . . . . . . . . . . . . Part Schematic 2 | . . . . . 1 . . . . . . . . . . . 1 . Terminal Index 2 | . . . . . . . . . 1 . . . . . . . 1 . Repair Station Index 1 | . . . . . . . . . . . . . . . . . 1 . Scanalyzer Index 2 | . . . . . . . . . . . . . . . . . 2 . Unreport Threat 3 | . . . . . . . 3 . . . . . . . . . . . Locate Traps 3 | . . . . . . . . . . . . . . . 1 . 2 . Dispatch Records 1 | . . . . . . . 1 . . . . . . . . . . . Patrol Status 1 | . . . . . . . 1 . . . . . . . . . . . Transport Status 1 | . . . . . . . 1 . . . . . . . . . . . Recall Reinforcements 1 | . . . . . . . 1 . . . . . . . . . . . Zone Layout 2 | . . . . . 1 . 1 . . . . . . . . . . . EX-Prototype ID Bank 1 | . . . 1 . . . . . . . . . . . . . . . Fabricator Hacks 2 | . . . . . . . . . . . . . . . . . 2 . Load Schematic 1 | . . . . . . . . . . . . . . . . . 1 . Build 1 | . . . . . . . . . . . . . . . . . 1 . Repair Station Hacks 6 | . . . . . . . 2 . 2 . . . . . 2 . . . Scan Component 4 | . . . . . . . 1 . 1 . . . . . 2 . . . Repair 2 | . . . . . . . 1 . 1 . . . . . . . . . Recycling Unit Hacks . | . . . . . . . . . . . . . . . . . . . Scanalyzer 3 | . . . . . . . . . . . . . . . . . 3 . Insert Component 2 | . . . . . . . . . . . . . . . . . 2 . Analyze 1 | . . . . . . . . . . . . . . . . . 1 . Garrison Access Hacks 7 | . . . . . 1 . 1 . 1 . 1 . 1 . 1 . 1 . Unlock Access 7 | . . . . . 1 . 1 . 1 . 1 . 1 . 1 . 1 . Unauthorized Hacks 7 | . . . . . 6 . . . . . . . 1 . . . . . Terminals 2 | . . . . . 2 . . . . . . . . . . . . . Assimilate 1 | . . . . . 1 . . . . . . . . . . . . . Operators 1 | . . . . . 1 . . . . . . . . . . . . . Fabricators . | . . . . . . . . . . . . . . . . . . . Repair Stations . | . . . . . . . . . . . . . . . . . . . Recycling Units . | . . . . . . . . . . . . . . . . . . . Scanalyzers . | . . . . . . . . . . . . . . . . . . . Garrison Access . | . . . . . . . . . . . . . . . . . . . Data Cores Recovered 1 | . . . . . . . 1 . . . . . . . . . . . Used . | . . . . . . . . . . . . . . . . . . . Hacking Detections 20 | . . . . . 2 . 4 . 4 . . . 2 . 4 . 4 . Full Trace Events 3 | . . . . . . . 1 . . . . . 2 . . . . . Feedback Events 1 | . . . . . . . . . . . . . 1 . . . . . Corruption 1 | . . . . . . . . . . . . . 1 . . . . . Feedback Blocked . | . . . . . . . . . . . . . . . . . . . Robot Schematics Acquired . | . . . . . . . . . . . . . . . . . . . Robots Built . | . . . . . . . . . . . . . . . . . . . Matter . | . . . . . . . . . . . . . . . . . . . Time . | . . . . . . . . . . . . . . . . . . . Total Robot Build Rating . | . . . . . . . . . . . . . . . . . . . Part Schematics Acquired 3 | . . . . . 1 . . . . . . . . . . . 2 . Parts Built 2 | . . . . . . . . . . . . . . . . . 2 . Matter 234 | . . . . . . . . . . . . . . . . . 234 . Time 117 | . . . . . . . . . . . . . . . . . 117 . Total Part Build Rating 14 | . . . . . . . . . . . . . . . . . 14 . Parts Repaired 2 | . . . . . . . 1 . 1 . . . . . . . . . Time 73 | . . . . . . . 38 . 35 . . . . . . . . . Parts Recycled . | . . . . . . . . . . . . . . . . . . . Recycled Matter . | . . . . . . . . . . . . . . . . . . . Retrieved Matter . | . . . . . . . . . . . . . . . . . . . Retrieved Components . | . . . . . . . . . . . . . . . . . . . Parts Scanalyzed 1 | . . . . . . . . . . . . . . . . . 1 . Part Schematics Acquired 1 | . . . . . . . . . . . . . . . . . 1 . Parts Damaged . | . . . . . . . . . . . . . . . . . . . Bothacking | -11 -10 -10 -10 -9 -8 -8 -8 -8 -7 -7 -7 -7 -6 -6 -5 -5 -5 -5 ------------ Run | Scr Mat Min Exi Min Mat Gar Mat Gar Fac Gar Fac Gar Fac Gar Fac Gar Fac Gar Used RIF Installer 6 | . . . . . . 1 . 1 . 1 . 1 . 1 . 1 . . Coupler Efficiency 1 | . . . . . . . . 1 . . . . . . . . . . Alert ID Control 1 | . . . . . . . . . . 1 . . . . . . . . Program Shield 1 | . . . . . . . . . . . . 1 . . . . . . Autooverride 1 | . . . . . . . . . . . . . . 1 . . . . Autoassimilate 1 | . . . . . . . . . . . . . . . . 1 . . Robots Hacked 52 | . . . . . . . . 1 . 5 . 12 3 9 1 6 12 3 Non-combat 6 | . . . . . . . . . . . . . 3 . . . 3 . Combat 46 | . . . . . . . . 1 . 5 . 12 . 9 1 6 9 3 Autooverrided 9 | . . . . . . . . . . . . . . . 1 3 3 2 Autoassimilated 3 | . . . . . . . . . . . . . . . . . 2 1 Robot Hacks Applied 44 | . . . . . . . . 1 . 5 . 13 4 9 . 3 9 . parse_system 2 | . . . . . . . . 1 . . . . 1 . . . . . no_distress 1 | . . . . . . . . . . . . . . . . . 1 . ignore_repairs 1 | . . . . . . . . . . . . . . . . . 1 . drop_inventory 1 | . . . . . . . . . . . . . 1 . . . . . ignore_parts 1 | . . . . . . . . . . . . . 1 . . . . . map_route 1 | . . . . . . . . . . . . . . . . . 1 . link_fov 3 | . . . . . . . . . . . . . 1 . . . 2 . scatter_targeting 1 | . . . . . . . . . . . . . . 1 . . . . disrupt_area 2 | . . . . . . . . . . . . 1 . 1 . . . . overload_power 5 | . . . . . . . . . . 2 . 3 . . . . . . disable_weapons 4 | . . . . . . . . . . 1 . 2 . 1 . . . . overwrite_iff 1 | . . . . . . . . . . . . 1 . . . . . . formatsys_high 21 | . . . . . . . . . . 2 . 6 . 6 . 3 4 . Relay Couplers Released 74 | . . . . . . 10 . 15 . 18 . 4 . 12 . 4 . 11 Machine Destruction 74 | . . . . . . 10 . 15 . 18 . 4 . 12 . 4 . 11 Attached 21 | . . . . . . . . . . 2 . 4 1 5 . 2 4 3 Robots Rewired 10 | . . . . . . 6 . . . 3 1 . . . . . . . Allies Hacked . | . . . . . . . . . . . . . . . . . . . Hacks Repelled . | . . . . . . . . . . . . . . . . . . . Allies | -11 -10 -10 -10 -9 -8 -8 -8 -8 -7 -7 -7 -7 -6 -6 -5 -5 -5 -5 -------- Run | Scr Mat Min Exi Min Mat Gar Mat Gar Fac Gar Fac Gar Fac Gar Fac Gar Fac Gar Total Allies 45 | . . . . . 1 6 . . . 5 1 7 . 6 1 6 9 3 Largest Group 6 | . . . . . 1 5 2 . . 3 1 4 . 5 6 3 2 1 Highest-Rated Group 210 | . . . . . 9 139 54 . . 63 16 93 . 169 210 105 58 47 Highest-Rated Ally 49 | . . . . . 9 38 38 . . 32 16 32 . 41 41 47 49 47 Total Orders . | . . . . . . . . . . . . . . . . . . . Ally Attacks 219 | . . . . . . 53 5 . . 20 . 22 . 28 31 22 30 8 Total Damage 5061 | . . . . . . 1233 159 . . 457 . 487 . 978 611 437 480 219 Kills 54 | . . . . . . 19 3 . . 7 . 3 . 10 7 2 3 . Allies Corrupted 1 | . . . . . . . . . . 1 . . . . . . . . Allies Melted 1 | . . . . . . . . . . . . 1 . . . . . . Intel | -11 -10 -10 -10 -9 -8 -8 -8 -8 -7 -7 -7 -7 -6 -6 -5 -5 -5 -5 ------- Run | Scr Mat Min Exi Min Mat Gar Mat Gar Fac Gar Fac Gar Fac Gar Fac Gar Fac Gar Robot Analysis Total . | . . . . . . . . . . . . . . . . . . . Derelict Logs Recovered 1 | . . 1 . . . . . . . . . . . . . . . . Drone Launches . | . . . . . . . . . . . . . . . . . . . Drone Recoveries . | . . . . . . . . . . . . . . . . . . . Exploration | -11 -10 -10 -10 -9 -8 -8 -8 -8 -7 -7 -7 -7 -6 -6 -5 -5 -5 -5 ------------- Run | Scr Mat Min Exi Min Mat Gar Mat Gar Fac Gar Fac Gar Fac Gar Fac Gar Fac Gar Turns Passed 17206 | 267 276 322 590 63 819 1007 1115 1625 1006 1814 145 768 1072 1119 1652 709 1666 1171 Spaces Moved 7496 | 155 110 108 324 27 390 494 471 827 408 814 58 313 488 493 760 265 606 385 Core 125 | 123 . . . . . . . . . . . . . . . . 1 1 Treads 7334 | 32 110 108 324 27 390 494 471 827 408 814 58 313 488 493 760 265 568 384 Legs 23 | . . . . . . . . . . . . . . . . . 23 . Wheels . | . . . . . . . . . . . . . . . . . . . Hover 14 | . . . . . . . . . . . . . . . . . 14 . Flight . | . . . . . . . . . . . . . . . . . . . Fastest Speed 50 | 50 160 160 160 160 160 160 156 156 156 160 180 180 180 180 180 185 165 166 Average Speed 173 | 153 160 160 175 172 164 160 158 157 167 179 180 180 180 180 182 185 185 183 Slowest Speed 1750 | 250 160 160 180 180 180 160 160 180 180 180 180 180 180 180 185 185 1750 1700 Overloaded Moves . | . . . . . . . . . . . . . . . . . . . Propulsion Burnouts . | . . . . . . . . . . . . . . . . . . . Robots Hopped . | . . . . . . . . . . . . . . . . . . . Cave-ins Triggered . | . . . . . . . . . . . . . . . . . . . Exploration Rate (%) 37 | 6 16 23 70 10 39 71 39 82 9 91 1 46 10 61 17 48 11 58 Regions Visited 18 Branch Regions 3 Pre-discovered Areas 2 | . . 1 1 . . . . . . . . . . . . . . . Known Exits Taken 7 | . . . . . 1 . 1 . 1 . 1 . 1 . 1 . 1 . Unknown Exits Taken 5 | 1 1 1 1 1 . . . . . . . . . . . . . . Scrap Searched 1 | . . 1 . . . . . . . . . . . . . . . . Spaces Dug 56 | . . . . . 1 . 2 . 5 7 3 . 10 . 13 4 7 4 Terrain Destroyed 258 | . 2 4 . 15 1 86 19 10 11 20 3 4 11 3 19 7 23 20 Melee 49 | . . . . . 1 . 2 . 5 . 3 . 10 . 13 4 7 4 Projectile 72 | . . . . 15 . . . . . 16 . 4 1 3 6 3 16 8 AOE 137 | . 2 4 . . . 86 17 10 6 4 . . . . . . . 8 Actions | -11 -10 -10 -10 -9 -8 -8 -8 -8 -7 -7 -7 -7 -6 -6 -5 -5 -5 -5 --------- Run | Scr Mat Min Exi Min Mat Gar Mat Gar Fac Gar Fac Gar Fac Gar Fac Gar Fac Gar Total 10694 | 171 160 227 349 41 524 672 708 1017 634 1051 84 458 627 646 999 456 1083 787 Wait 1477 | 5 24 102 16 3 62 47 113 87 105 21 6 57 65 29 124 104 270 237 Move 7484 | 154 109 107 323 26 390 493 471 826 408 812 58 312 488 492 760 264 606 385 Hop . | . . . . . . . . . . . . . . . . . . . Pick Up 173 | 1 2 1 2 2 15 10 13 6 17 39 1 5 8 14 17 4 6 10 Fast Attach 34 | 6 . 1 . . 2 . 1 . 7 1 . 1 . 1 1 . 11 2 Attach 91 | . . . 2 3 3 2 6 3 6 16 . 5 3 9 5 3 13 12 Detach 38 | . . . 3 2 . 1 2 . 3 2 . 2 1 5 2 1 8 6 Swap 199 | . . . 1 . 13 9 21 13 19 25 5 22 22 15 7 5 13 9 Drop 161 | . . 1 2 1 11 10 14 11 20 31 2 4 8 15 18 1 7 5 Fire 794 | 5 25 15 . 4 27 23 63 70 44 77 9 43 20 45 50 62 140 72 Melee 110 | . . . . . 1 . 3 1 5 3 3 1 10 10 13 8 8 44 Ram . | . . . . . . . . . . . . . . . . . . . Kick . | . . . . . . . . . . . . . . . . . . . Crush 5 | . . . . . . 1 1 . . . . . 2 . . . 1 . Escape Stasis 26 | . . . . . . 2 . . . 6 . 6 . 8 . 4 . . Rewire 102 | . . . . . . 74 . . . 18 . . . 3 2 . . 5 Trap . | . . . . . . . . . . . . . . . . . . . Miscellaneous . | . . . . . . . . . . . . . . . . . . . Route ------- -11/Scrapyard -10/Materials -10/Mines -10/Exiles -9/Mines -8/Materials (discovered 2 exits: *Fac / Gar) -8/Garrison (discovered 2 exits: *Mat x2) -8/Materials (discovered 3 exits: *Fac / [*Sto] / Gar) -8/Garrison (discovered 3 exits: *Fac x3) -7/Factory -7/Garrison (discovered 3 exits: *Fac x3) -7/Factory -7/Garrison -6/Factory -6/Garrison (discovered 2 exits: *Fac x2) -5/Factory -5/Garrison -5/Factory -5/Garrison (discovered 1 exit: [*Fac]) History --------- Turn | Location | Event 10 | -11/Scrapyard | Discovered new exit (range 16) 268 | -11/Scrapyard | Entered Materials 307 | -10/Materials | Build established: Mutant 463 | -10/Materials | Discovered new exit (range 16) 544 | -10/Materials | Entered Mines 617 | -10/Mines | Learned location of Zion (-6) 650 | -10/Mines | Excavation squad dispatched 650 | -10/Mines | A large section of the Mines collapsed 859 | -10/Mines | Deemed a non-threat by the Exiles lab entrance 859 | -10/Mines | Discovered new exit (range 5) 866 | -10/Mines | Entered Exiles 908 | -10/Exiles | Met 8R-AWN 945 | -10/Exiles | Met EX-HEX 1042 | -10/Exiles | Met EX-DEC 1111 | -10/Exiles | Met EX-BIN 1136 | -10/Exiles | Aligned with FarCom system 1138 | -10/Exiles | Given EX-Vault access code 1186 | -10/Exiles | Opened EX-Vault 1204 | -10/Exiles | Found AWS/Gauss 1243 | -10/Exiles | Warned to stay clear of 0b10 Research branches 1262 | -10/Exiles | Exiles lab attacked by MAIN.C 1436 | -10/Exiles | Discovered new exit (range 14) 1456 | -10/Exiles | Left Exiles lab with AWS/Gauss 1456 | -10/Exiles | Entered Mines 1456 | -9/Mines | Discovered new exit (range 9) 1519 | -9/Mines | Entered Materials 1519 | -8/Materials | Evolved 4 slots: Propulsion x2, Utility x2 1816 | -8/Materials | Discovered new exit (range 16) 1975 | -8/Materials | Build established: Scavenger-Skirmisher 2248 | -8/Materials | Garrison activated, responded to threat 2338 | -8/Materials | Identified exit to Garrison 2338 | -8/Materials | Entered Garrison 2393 | -8/Garrison | Rewired Cogmind 2428 | -8/Garrison | Rewired Cogmind 2562 | -8/Garrison | Rewired Cogmind 2565 | -8/Garrison | Rewired Cogmind 2671 | -8/Garrison | Rewired Cogmind 2686 | -8/Garrison | Rewired Cogmind 2731 | -8/Garrison | Triggered checkpoint 2746 | -8/Garrison | Triggered checkpoint 2820 | -8/Garrison | Triggered checkpoint 2834 | -8/Garrison | Triggered checkpoint 2834 | -8/Garrison | Triggered checkpoint 2943 | -8/Garrison | Discovered new exit (range 14) 3118 | -8/Garrison | Phase Generator disabled 3240 | -8/Garrison | Spotted B-75 Beast 3242 | -8/Garrison | Garrison Relay disabled 3325 | -8/Garrison | Discovered new exit (range 5) 3339 | -8/Garrison | Installed Relay Interface Framework 3345 | -8/Garrison | Entered Materials 3345 | -8/Materials | Accompanied by 2 allies 3480 | -8/Materials | Discovered new exit (range 16) 4192 | -8/Materials | Discovered new exit (range 16) 4248 | -8/Materials | Repaired Shock Rifle 4279 | -8/Materials | Build established: Hauler-Mutant 4460 | -8/Materials | Identified exit to Garrison 4460 | -8/Materials | Entered Garrison 4524 | -8/Garrison | Triggered checkpoint 4555 | -8/Garrison | Garrison Relay disabled 4749 | -8/Garrison | Triggered checkpoint 4854 | -8/Garrison | Destroyed 7 combat bots 4878 | -8/Garrison | Build established: Bothacker-Mutant 4920 | -8/Garrison | Triggered checkpoint 4952 | -8/Garrison | Garrison Relay disabled 5123 | -8/Garrison | Discovered new exit (range 14) 5214 | -8/Garrison | Triggered checkpoint 5227 | -8/Garrison | Triggered checkpoint 5269 | -8/Garrison | Destroyed 8 combat bots 5338 | -8/Garrison | Discovered new exit (range 8) 5402 | -8/Garrison | Triggered checkpoint 5613 | -8/Garrison | Triggered checkpoint 5614 | -8/Garrison | Garrison Relay disabled 5684 | -8/Garrison | Triggered checkpoint 5696 | -8/Garrison | Discovered new exit (range 15) 5734 | -8/Garrison | Expanded RIF knowledge: Coupler Efficiency 5935 | -8/Garrison | Garrison Relay disabled 6085 | -8/Garrison | Entered Factory 6085 | -7/Factory | Evolved 2 slots: Utility x2 6247 | -7/Factory | Repaired Prc. Shock Rifle 7046 | -7/Factory | Garrison activated, responded to threat 7091 | -7/Factory | Identified exit to Garrison 7091 | -7/Factory | Entered Garrison 7117 | -7/Garrison | Spotted B-75 Beast 7187 | -7/Garrison | Destroyed B-75 Beast 7215 | -7/Garrison | Lost 13 parts (2p6n1u4w) 7386 | -7/Garrison | Triggered checkpoint 7438 | -7/Garrison | Rewired Cogmind 7475 | -7/Garrison | Rewired Cogmind 7479 | -7/Garrison | Rewired Cogmind 7502 | -7/Garrison | Triggered checkpoint 7547 | -7/Garrison | Garrison Relay disabled 7682 | -7/Garrison | Triggered checkpoint 7682 | -7/Garrison | Triggered checkpoint 7718 | -7/Garrison | Triggered checkpoint 7818 | -7/Garrison | Triggered checkpoint 7853 | -7/Garrison | Garrison Relay disabled 7977 | -7/Garrison | Discovered new exit (range 12) 8116 | -7/Garrison | Discovered new exit (range 12) 8180 | -7/Garrison | Triggered checkpoint 8239 | -7/Garrison | Garrison Relay disabled 8442 | -7/Garrison | Discovered new exit (range 9) 8466 | -7/Garrison | Expanded RIF knowledge: Alert ID Control 8576 | -7/Garrison | Spotted B-75 Beast 8579 | -7/Garrison | Allies destroyed B-75 Beast 8808 | -7/Garrison | Triggered checkpoint 8818 | -7/Garrison | Core integrity fell below 50% 8832 | -7/Garrison | Garrison Relay disabled 8905 | -7/Garrison | Entered Factory 9050 | -7/Factory | Identified exit to Garrison 9050 | -7/Factory | Entered Garrison 9050 | -7/Garrison | Accompanied by 1 ally 9061 | -7/Garrison | Expanded RIF knowledge: Program Shield 9500 | -7/Garrison | Triggered checkpoint 9580 | -7/Garrison | Garrison Relay disabled 9694 | -7/Garrison | Triggered checkpoint 9804 | -7/Garrison | Discovered new exit (range 8) 9818 | -7/Garrison | Entered Factory 9818 | -6/Factory | Evolved 2 slots: Utility x1, Weapon x1 10890 | -6/Factory | Identified exit to Garrison 10890 | -6/Factory | Entered Garrison 11150 | -6/Garrison | Garrison Relay disabled 11238 | -6/Garrison | Triggered checkpoint 11262 | -6/Garrison | Triggered checkpoint 11274 | -6/Garrison | Triggered checkpoint 11349 | -6/Garrison | Found Quantum Capacitor 11358 | -6/Garrison | Found Quantum Capacitor 11484 | -6/Garrison | Triggered checkpoint 11484 | -6/Garrison | Triggered checkpoint 11558 | -6/Garrison | Triggered checkpoint 11606 | -6/Garrison | Discovered new exit (range 9) 11635 | -6/Garrison | Expanded RIF knowledge: Autooverride 11670 | -6/Garrison | Triggered checkpoint 11699 | -6/Garrison | Garrison Relay disabled 11796 | -6/Garrison | Triggered checkpoint 11886 | -6/Garrison | Triggered checkpoint 11920 | -6/Garrison | Garrison Relay disabled 11987 | -6/Garrison | Discovered new exit (range 11) 12009 | -6/Garrison | Entered Factory 12009 | -5/Factory | Accompanied by 5 allies 12009 | -5/Factory | Evolved 2 slots: Utility x2 12217 | -5/Factory | Build established: Botlord-Mutant 12731 | -5/Factory | Build established: Bothacker-Mutant 12897 | -5/Factory | P-70 Sage assimilated allied Soldier 5c 13318 | -5/Factory | Build established: Bothacker-Assassin 13661 | -5/Factory | Identified exit to Garrison 13661 | -5/Factory | Entered Garrison 13749 | -5/Garrison | Build established: Bothacker-Mutant 13806 | -5/Garrison | Triggered checkpoint 13840 | -5/Garrison | Garrison Relay disabled 13980 | -5/Garrison | Triggered checkpoint 14108 | -5/Garrison | Build established: Botlord-Mutant 14290 | -5/Garrison | Discovered new exit (range 8) 14318 | -5/Garrison | Expanded RIF knowledge: Autoassimilate 14370 | -5/Garrison | Entered Factory 14492 | -5/Factory | Build established: Hauler-Mutant 14559 | -5/Factory | Garrison activated, responded to threat 14772 | -5/Factory | Lost 3 parts (2n1w) 15021 | -5/Factory | Build established: Botlord-Mutant 15468 | -5/Factory | Fabricated Hvy. Siege Treads? 15485 | -5/Factory | Core integrity fell below 50% 15500 | -5/Factory | Lost 10 parts (4n4u2w) 15845 | -5/Factory | Build established: Hauler-Mutant 16036 | -5/Factory | Identified exit to Garrison 16036 | -5/Factory | Entered Garrison 16106 | -5/Garrison | Triggered checkpoint 16133 | -5/Garrison | Garrison Relay disabled 16630 | -5/Garrison | Spotted B-75 Beast 16669 | -5/Garrison | Destroyed B-75 Beast 16688 | -5/Garrison | Triggered checkpoint 16708 | -5/Garrison | Triggered checkpoint 16771 | -5/Garrison | Discovered new exit (range 8) 16822 | -5/Garrison | Triggered checkpoint 16878 | -5/Garrison | Garrison Relay disabled 16907 | -5/Garrison | Triggered checkpoint 17120 | -5/Garrison | Triggered checkpoint 17184 | -5/Garrison | Triggered checkpoint 17186 | -5/Garrison | Core integrity fell below 20% 17207 | -5/Garrison | Destroyed by S-27 Virus with Autogun Last Messages --------------- 17125_ Axe follow-up attack on S-27 Virus. 17125_ S-27 Virus destroyed. 17134_ Dropped Lgt. Angular Momentum Engine. 17134_ Lgt. Angular Momentum Engine crushed and broken. 17135_ Acquired 10 matter. 17177_ Imp. Medium Treads destroyed. 17180_ Lgt. Angular Momentum Engine destroyed. 17183_ S-27 Virus destroyed. 17184_ Beams of light sweep through the air. An alarm sounds. 17187_ Acquired 20 matter. 17187_ Imp. Medium Treads destroyed. 17189_ Axe follow-up attack on S-27 Virus. 17189_ S-27 Virus destroyed. 17192_ Chainsword destroyed. 17193_ Acquired 5 matter. 17195_ Adv. Heat Sink destroyed. 17199_ Critical hit. 17199_ Hvy. Siege Treads destroyed. 17203_ Quantum Capacitor destroyed. 17203_ Mic. Fission Core destroyed. Map ----- +----------------------------------------------------+ | ???????????????????????????????????# ######### # | | ???????????????????????????????????# #?# #???#* # | | ????????????????????????????????#??# ### ##### # | | ?????????????????????????????????#?# # " | | ?????????????????????????????####?##*!##### ### [" | | ?????????????????????????????# #"%%#??## #?# %# | | ????????????????????????#^ ## #"**###?# #?#!=# | | ????????????????????????# ^ !%]"#######% # | | ????????????????????????# ^ !* # | | ????????????????????????# ^ % # | | ????????????????????????# ## "#%% ##"######## | | ????????????????????????# ## ## =%####????#?? | | ???????????????????????? %[ ##???#??? | | ???????????????????????? #?????#?? | | ???????????????????????? "##?????#? | | ???????????????????????? %#?????### | | ????????????????????????# ## ## %###??#???#? | | ??????????????########### ## ## s"#?????#### | | ??????????????# ##?###????? | | ????????????????? g #?? #????? | | ????????????????????????# #??# #????? | | ????????????????????????## ## [## "#??# ##???? | | ?????????????????????????# ## =%## ###?# ##???? | | ?????????????????????????#=*#####"## #???# ##???# | | ??????????????????## #####gg#???#%##= ##### ###### | | ??????????????????# s @s=#???#*%+[[" | | ??????????????????# ###### s#?#?###%%%##### ###### | | ???????????????????####### #?????##=%#???# #?#??? | | ???????????? #??????#==########???? | | ???????????? #??????# #??## | | ??????????????# #############??????# ####% | | ????????????????????????#???????#??######## [=[%% | | ??????????????????????????????????????????# ##### | | ????????????????????????????????????#???### #??#? | | ??????????????????????????????????? ??????# #???? | | ??????????????????????????????????????????# #???? | | ??????????????????????????????????????????# ###?? | | ????????????????????????????#?????????#???# #?? | | ??????????????????????????????????????????# < #?? | | ???????????????????????????????????????#??# #?? | | ??????????????????????????????????????????######?? | | ?????????????????????l???????????????????????????? | | ?????????????????????b???????????????????????????? | | ?????????????????????????????????????????????????? | | ?????????????????????????????????????????????????? | | ?????????????????????????????????????????????????? | | ?????????????????????????????????????????????????? | | ?????????????????????????????????????????????????? | | ?????????????????????????????????????????????????? | | ?????????????????????????????????????????????????? | +----------------------------------------------------+ Best States ------------- Heat Dissipation 78 Energy Generation 18 Energy Capacity 670 Matter Stores 300 Matter Capacity 300 Sight Range 16 Terrain Scan Range 16 Terrain Scan Density 85 Jamming Range 12 Armor Coverage 225 Resistance: TH 15 Resistance: EX 50 Weapon Shielding 66 Evasion (%) 40 Targeting Accuracy 8 Recoil Reduction 4 Particle Charging 20 Offensive Hacking 10 Item Schematics ----------------- Hcp. Storage Unit | -8/Materials | Hacked Quantum Capacitor | -5/Factory | Scanalyzed Hvy. Siege Treads | -5/Factory | Hacked Robot Schematics ------------------ None Fabricated ------------ Hvy. Siege Treads | x2 | -5/Factory Alien Tech Used ----------------- None Achievements -------------- None Challenges ------------ None Game ------ Seed LatentStructuralEngine Manual? 0 Play Time 03:00:59 Cumulative 192.8 hours Start 2020.04.06 @ 23:20:39 End 2020.04.07 @ 15:05:29 Sessions 3 Manual Loads 0 Difficulty Rogue Special Mode None Game No. 140 Rogue 140 Adventurer 0 Explorer 0 Win Type - Total 9 Types 4/0/1/1/0/2/1 Lore% 75 Gallery% 79 Achievement% 71 Wizard Run 0 Options --------- ASCII 0 Keyboard 1 Movement Numpad Keybinds 0 Fullscreen 1 Font 12/Terminus Map View 83x54 Tactical HUD 1 Map Filters NONE Filters LOW_CONTRAST(13,24,33) Steam 1 RUN: c90f3d97-622e-4932-b3dd-5354c8b39795